[Event "November 21 Early 2023"]
[Site "https://www.chess.com"]
[Date "2023.11.21"]
[Round "8"]
[White "Predator0608"]
[Black "Herman, Daniel"]
[Result "1-0"]
[Board "84"]
[TimeControl "180+1"]
[BlackFideId "30935008"]
[WhiteElo "2592"]
[BlackElo "1897"]
[BlackTeam "USA"]
[WhiteClock "0:00:25"]
[BlackClock "0:00:06"]

1. e4 {[%clk 0:03:00]}  Nf6 {[%clk 0:02:57]} 2. e5 {[%clk 0:03:01]}  Nd5 {[%clk 0:02:58]} 3. d4 {[%clk 0:03:01]}  Nb6 {[%clk 0:02:58]} 4. Nf3 {[%clk 0:03:02]}  d5 {[%clk 0:02:58]} 5. Bd3 {[%clk 0:02:58]}  Bg4 {[%clk 0:02:57]} 6. c3 {[%clk 0:02:58]}  e6 {[%clk 0:02:55]} 7. h3 {[%clk 0:02:56]}  Bh5 {[%clk 0:02:51]} 8. Bf4 {[%clk 0:02:50]}  c5 {[%clk 0:02:50]} 9. Nbd2 {[%clk 0:02:50]}  Nc6 {[%clk 0:02:49]} 10. g4 {[%clk 0:02:38]}  Bg6 {[%clk 0:02:49]} 11. Qe2 {[%clk 0:02:38]}  c4 {[%clk 0:02:34]} 12. Bxg6 {[%clk 0:02:37]}  hxg6 {[%clk 0:02:35]} 13. b3 {[%clk 0:02:33]}  Na5 {[%clk 0:02:31]} 14. Kf1 {[%clk 0:02:24]}  Rc8 {[%clk 0:02:23]} 15. Kg2 {[%clk 0:02:22]}  Be7 {[%clk 0:02:09]} 16. Bg3 {[%clk 0:01:59]}  Qd7 {[%clk 0:02:01]} 17. b4 {[%clk 0:01:57]}  Nc6 {[%clk 0:02:00]} 18. h4 {[%clk 0:01:52]}  Na4 {[%clk 0:01:51]} 19. Qe3 {[%clk 0:01:44]}  Nxc3 {[%clk 0:01:47]} 20. Qxc3 {[%clk 0:01:43]}  Bxb4 {[%clk 0:01:47]} 21. Qe3 {[%clk 0:01:42]}  Ba5 {[%clk 0:01:35]} 22. h5 {[%clk 0:01:27]}  gxh5 {[%clk 0:01:33]} 23. Rxh5 {[%clk 0:01:25]}  Rxh5 {[%clk 0:01:32]} 24. gxh5 {[%clk 0:01:26]}  Qe7 {[%clk 0:01:22]} 25. h6 {[%clk 0:01:12]}  gxh6 {[%clk 0:01:20]} 26. Qxh6 {[%clk 0:01:11]}  Kd7 {[%clk 0:01:17]} 27. Rb1 {[%clk 0:01:05]}  Kc7 {[%clk 0:00:59]} 28. Nxc4 {[%clk 0:01:01]}  dxc4 {[%clk 0:00:47]} 29. d5 {[%clk 0:01:01]}  Qf8 {[%clk 0:00:42]} 30. Qf4 {[%clk 0:00:26]}  exd5 {[%clk 0:00:20]} 31. e6+ {[%clk 0:00:26]}  Kd8 {[%clk 0:00:20]} 32. Rxb7 {[%clk 0:00:26]}  Bc7 {[%clk 0:00:06]} 33. Rxc7 {[%clk 0:00:25]} 1-0

[Event "November 21 Early 2023"]
[Site "https://www.chess.com"]
[Date "2023.11.21"]
[Round "8"]
[White "Palacio,Igor Da Paz"]
[Black "ChainedDowntohell"]
[Result "0-1"]
[Board "86"]
[TimeControl "180+1"]
[WhiteFideId "2121140"]
[WhiteElo "2126"]
[BlackElo "2587"]
[WhiteTeam "BRA"]
[WhiteClock "0:00:00"]
[BlackClock "0:00:22"]

1. e4 {[%clk 0:03:00]}  c5 {[%clk 0:02:58]} 2. Nc3 {[%clk 0:03:00]}  Nc6 {[%clk 0:02:57]} 3. g3 {[%clk 0:03:01]}  g6 {[%clk 0:02:56]} 4. d3 {[%clk 0:03:01]}  Bg7 {[%clk 0:02:57]} 5. Bg2 {[%clk 0:03:01]}  d6 {[%clk 0:02:56]} 6. f4 {[%clk 0:03:01]}  Rb8 {[%clk 0:02:52]} 7. Nf3 {[%clk 0:03:00]}  b5 {[%clk 0:02:52]} 8. a3 {[%clk 0:03:00]}  a5 {[%clk 0:02:50]} 9. O-O {[%clk 0:02:58]}  b4 {[%clk 0:02:49]} 10. axb4 {[%clk 0:02:57]}  axb4 {[%clk 0:02:50]} 11. Ne2 {[%clk 0:02:58]}  e6 {[%clk 0:02:48]} 12. Rb1 {[%clk 0:02:57]}  Nge7 {[%clk 0:02:28]} 13. Be3 {[%clk 0:02:53]}  O-O {[%clk 0:02:20]} 14. h3 {[%clk 0:02:52]}  Ba6 {[%clk 0:02:17]} 15. e5 {[%clk 0:02:41]}  Nf5 {[%clk 0:02:12]} 16. Bf2 {[%clk 0:02:41]}  dxe5 {[%clk 0:02:08]} 17. Bxc5 {[%clk 0:02:25]}  exf4 {[%clk 0:02:05]} 18. gxf4 {[%clk 0:02:09]}  Re8 {[%clk 0:02:00]} 19. Qd2 {[%clk 0:01:52]}  b3 {[%clk 0:01:53]} 20. c4 {[%clk 0:01:47]}  Qc7 {[%clk 0:01:42]} 21. Bf2 {[%clk 0:01:26]}  Red8 {[%clk 0:01:40]} 22. Rbc1 {[%clk 0:01:21]}  Nb4 {[%clk 0:01:37]} 23. Ne1 {[%clk 0:01:12]}  Na2 {[%clk 0:01:24]} 24. Rd1 {[%clk 0:00:59]}  Bxc4 {[%clk 0:01:21]} 25. Ng3 {[%clk 0:00:50]}  Nh4 {[%clk 0:01:09]} 26. Be4 {[%clk 0:00:44]}  Bd5 {[%clk 0:01:04]} 27. Qe2 {[%clk 0:00:35]}  Bxe4 {[%clk 0:00:59]} 28. dxe4 {[%clk 0:00:36]}  Rxd1 {[%clk 0:00:58]} 29. Qxd1 {[%clk 0:00:36]}  Bxb2 {[%clk 0:00:56]} 30. Nd3 {[%clk 0:00:24]}  Bf6 {[%clk 0:00:48]} 31. Nc5 {[%clk 0:00:23]}  Nc3 {[%clk 0:00:44]} 32. Qd3 {[%clk 0:00:19]}  b2 {[%clk 0:00:34]} 33. Na6 {[%clk 0:00:15]}  Qd8 {[%clk 0:00:27]} 34. Qxd8+ {[%clk 0:00:05]}  Rxd8 {[%clk 0:00:28]} 35. e5 {[%clk 0:00:04]}  Rd1 {[%clk 0:00:25]} 36. Bd4 {[%clk 0:00:00]}  Rxf1+ {[%clk 0:00:22]} 0-1

[Event "November 21 Early 2023"]
[Site "https://www.chess.com"]
[Date "2023.11.21"]
[Round "8"]
[White "Thorfinnsson, Bjorn"]
[Black "secrethawk1"]
[Result "0-1"]
[Board "87"]
[TimeControl "180+1"]
[WhiteFideId "2300982"]
[WhiteElo "2381"]
[BlackElo "2405"]
[WhiteTeam "ISL"]
[WhiteClock "0:00:22"]
[BlackClock "0:01:05"]

1. d4 {[%clk 0:03:00]}  Nf6 {[%clk 0:02:59]} 2. Nf3 {[%clk 0:03:01]}  e6 {[%clk 0:02:57]} 3. Bg5 {[%clk 0:03:00]}  c5 {[%clk 0:02:54]} 4. c3 {[%clk 0:03:00]}  Nc6 {[%clk 0:02:52]} 5. e3 {[%clk 0:03:00]}  d5 {[%clk 0:02:51]} 6. Nbd2 {[%clk 0:03:00]}  Be7 {[%clk 0:02:49]} 7. Bd3 {[%clk 0:02:59]}  O-O {[%clk 0:02:38]} 8. Qc2 {[%clk 0:02:59]}  h6 {[%clk 0:02:37]} 9. h4 {[%clk 0:02:56]}  c4 {[%clk 0:02:34]} 10. Be2 {[%clk 0:02:55]}  b5 {[%clk 0:02:10]} 11. Bxf6 {[%clk 0:02:55]}  Bxf6 {[%clk 0:02:09]} 12. g4 {[%clk 0:02:56]}  g6 {[%clk 0:02:08]} 13. g5 {[%clk 0:02:53]}  Bg7 {[%clk 0:02:08]} 14. gxh6 {[%clk 0:02:52]}  Bxh6 {[%clk 0:02:06]} 15. O-O-O {[%clk 0:02:49]}  b4 {[%clk 0:02:05]} 16. Rdg1 {[%clk 0:02:23]}  bxc3 {[%clk 0:02:00]} 17. bxc3 {[%clk 0:02:24]}  Rb8 {[%clk 0:01:59]} 18. h5 {[%clk 0:02:13]}  g5 {[%clk 0:01:59]} 19. Nxg5 {[%clk 0:02:11]}  Bxg5 {[%clk 0:01:57]} 20. f4 {[%clk 0:02:04]}  Kh8 {[%clk 0:01:56]} 21. Rxg5 {[%clk 0:01:33]}  Qa5 {[%clk 0:01:55]} 22. Nb1 {[%clk 0:01:30]}  Bd7 {[%clk 0:01:48]} 23. Rg6 {[%clk 0:00:58]}  fxg6 {[%clk 0:01:11]} 24. Qxg6 {[%clk 0:00:57]}  Rxb1+ {[%clk 0:01:09]} 25. Kxb1 {[%clk 0:00:52]}  Rb8+ {[%clk 0:01:09]} 26. Kc2 {[%clk 0:00:26]}  Qxa2+ {[%clk 0:01:08]} 27. Kc1 {[%clk 0:00:26]}  Qa1+ {[%clk 0:01:06]} 28. Kd2 {[%clk 0:00:22]}  Rb2+ {[%clk 0:01:05]} 0-1

[Event "November 21 Early 2023"]
[Site "https://www.chess.com"]
[Date "2023.11.21"]
[Round "8"]
[White "Santos Flores, Alberto"]
[Black "Feliz Dotel, Dewar Bienvenido"]
[Result "1/2-1/2"]
[Board "88"]
[TimeControl "180+1"]
[WhiteFideId "3601234"]
[BlackFideId "6402801"]
[WhiteElo "2235"]
[BlackElo "2069"]
[WhiteTeam "ECU"]
[BlackTeam "DOM"]
[WhiteClock "0:00:29"]
[BlackClock "0:00:20"]

1. e4 {[%clk 0:03:00]}  e5 {[%clk 0:02:59]} 2. Nf3 {[%clk 0:03:01]}  Nc6 {[%clk 0:02:59]} 3. Bc4 {[%clk 0:03:01]}  Nf6 {[%clk 0:02:59]} 4. d3 {[%clk 0:03:01]}  Be7 {[%clk 0:02:58]} 5. O-O {[%clk 0:03:01]}  O-O {[%clk 0:02:58]} 6. c3 {[%clk 0:03:01]}  d6 {[%clk 0:02:58]} 7. Bb3 {[%clk 0:03:00]}  Na5 {[%clk 0:02:56]} 8. Bc2 {[%clk 0:03:00]}  c5 {[%clk 0:02:56]} 9. Re1 {[%clk 0:02:57]}  Nc6 {[%clk 0:02:56]} 10. Nbd2 {[%clk 0:02:56]}  h6 {[%clk 0:02:45]} 11. Nf1 {[%clk 0:02:53]}  Be6 {[%clk 0:02:45]} 12. h3 {[%clk 0:02:52]}  Rc8 {[%clk 0:02:36]} 13. a3 {[%clk 0:02:52]}  b5 {[%clk 0:02:24]} 14. Be3 {[%clk 0:02:28]}  a5 {[%clk 0:02:23]} 15. Rc1 {[%clk 0:02:26]}  d5 {[%clk 0:02:20]} 16. exd5 {[%clk 0:02:23]}  Nxd5 {[%clk 0:02:21]} 17. Bd2 {[%clk 0:02:20]}  Nf4 {[%clk 0:02:20]} 18. Nxe5 {[%clk 0:02:10]}  Nxe5 {[%clk 0:02:05]} 19. Bxf4 {[%clk 0:02:10]}  Ng6 {[%clk 0:02:04]} 20. Bg3 {[%clk 0:02:08]}  Bf5 {[%clk 0:02:01]} 21. Ne3 {[%clk 0:02:03]}  Bd7 {[%clk 0:01:49]} 22. d4 {[%clk 0:02:02]}  cxd4 {[%clk 0:01:46]} 23. Qxd4 {[%clk 0:02:00]}  Bf6 {[%clk 0:01:40]} 24. Qd6 {[%clk 0:01:50]}  Rc6 {[%clk 0:01:32]} 25. Qd2 {[%clk 0:01:45]}  Qc8 {[%clk 0:01:27]} 26. Nd5 {[%clk 0:01:40]}  Bg5 {[%clk 0:01:20]} 27. f4 {[%clk 0:01:39]}  Bd8 {[%clk 0:01:19]} 28. Rcd1 {[%clk 0:01:24]}  Be6 {[%clk 0:01:13]} 29. f5 {[%clk 0:01:20]}  Bxd5 {[%clk 0:00:47]} 30. Qxd5 {[%clk 0:01:17]}  Bb6+ {[%clk 0:00:35]} 31. Kh1 {[%clk 0:01:15]}  Ne7 {[%clk 0:00:35]} 32. Rxe7 {[%clk 0:01:12]}  b4 {[%clk 0:00:34]} 33. axb4 {[%clk 0:01:08]}  axb4 {[%clk 0:00:33]} 34. Bb3 {[%clk 0:01:03]}  Rc5 {[%clk 0:00:26]} 35. Qd7 {[%clk 0:00:50]}  Qxd7 {[%clk 0:00:19]} 36. Rdxd7 {[%clk 0:00:49]}  bxc3 {[%clk 0:00:19]} 37. bxc3 {[%clk 0:00:41]}  Rxc3 {[%clk 0:00:19]} 38. Bxf7+ {[%clk 0:00:37]}  Rxf7 {[%clk 0:00:18]} 39. Rxf7 {[%clk 0:00:34]}  Rc1+ {[%clk 0:00:18]} 40. Kh2 {[%clk 0:00:34]}  Bg1+ {[%clk 0:00:19]} 41. Kh1 {[%clk 0:00:33]}  Bf2+ {[%clk 0:00:19]} 42. Kh2 {[%clk 0:00:31]}  Bg1+ {[%clk 0:00:19]} 43. Kh1 {[%clk 0:00:30]}  Bf2+ {[%clk 0:00:20]} 44. Kh2 {[%clk 0:00:29]}  Bg1+ {[%clk 0:00:20]} 1/2-1/2

[Event "November 21 Early 2023"]
[Site "https://www.chess.com"]
[Date "2023.11.21"]
[Round "8"]
[White "Starozhilov, Leonid"]
[Black "LeoLV10"]
[Result "1-0"]
[Board "90"]
[TimeControl "180+1"]
[WhiteFideId "14106752"]
[WhiteElo "2270"]
[BlackElo "2517"]
[WhiteTeam "UKR"]
[WhiteClock "0:00:49"]
[BlackClock "0:00:11"]

1. e4 {[%clk 0:03:00]}  c6 {[%clk 0:03:00]} 2. d3 {[%clk 0:02:59]}  d5 {[%clk 0:03:01]} 3. Nd2 {[%clk 0:03:00]}  dxe4 {[%clk 0:03:01]} 4. dxe4 {[%clk 0:02:59]}  g6 {[%clk 0:03:01]} 5. h4 {[%clk 0:02:59]}  Bg7 {[%clk 0:03:02]} 6. h5 {[%clk 0:03:00]}  Nf6 {[%clk 0:03:02]} 7. h6 {[%clk 0:02:56]}  Bf8 {[%clk 0:03:03]} 8. Be2 {[%clk 0:02:57]}  Nbd7 {[%clk 0:03:00]} 9. e5 {[%clk 0:02:54]}  Nxe5 {[%clk 0:02:59]} 10. b3 {[%clk 0:02:47]}  Neg4 {[%clk 0:02:47]} 11. Bb2 {[%clk 0:02:39]}  Rg8 {[%clk 0:02:32]} 12. Bxg4 {[%clk 0:02:33]}  Bxg4 {[%clk 0:02:19]} 13. f3 {[%clk 0:02:32]}  Bd7 {[%clk 0:02:08]} 14. Qe2 {[%clk 0:02:29]}  Nd5 {[%clk 0:02:07]} 15. Nc4 {[%clk 0:02:24]}  Be6 {[%clk 0:01:55]} 16. O-O-O {[%clk 0:02:21]}  b5 {[%clk 0:01:41]} 17. Ne5 {[%clk 0:02:18]}  Qb6 {[%clk 0:01:40]} 18. Nh3 {[%clk 0:02:07]}  O-O-O {[%clk 0:01:02]} 19. Ng5 {[%clk 0:02:02]}  Nf4 {[%clk 0:00:33]} 20. Rxd8+ {[%clk 0:01:52]}  Qxd8 {[%clk 0:00:33]} 21. Qe3 {[%clk 0:01:42]}  Nd5 {[%clk 0:00:31]} 22. Qxa7 {[%clk 0:01:41]}  Qc7 {[%clk 0:00:31]} 23. Qa8+ {[%clk 0:01:40]}  Qb8 {[%clk 0:00:29]} 24. Qxc6+ {[%clk 0:01:40]}  Qc7 {[%clk 0:00:29]} 25. Qe8+ {[%clk 0:01:17]}  Qd8 {[%clk 0:00:29]} 26. Qxb5 {[%clk 0:01:16]}  Nc7 {[%clk 0:00:27]} 27. Nxe6 {[%clk 0:01:06]}  fxe6 {[%clk 0:00:21]} 28. Qc6 {[%clk 0:01:03]}  Qd6 {[%clk 0:00:20]} 29. a4 {[%clk 0:00:52]}  Kd8 {[%clk 0:00:13]} 30. Nf7+ {[%clk 0:00:49]}  Kc8 {[%clk 0:00:11]} 1-0

[Event "November 21 Early 2023"]
[Site "https://www.chess.com"]
[Date "2023.11.21"]
[Round "8"]
[White "UNSTOPPABLE_LEGEND"]
[Black "MKlose11"]
[Result "1-0"]
[Board "92"]
[TimeControl "180+1"]
[WhiteElo "2499"]
[BlackElo "2648"]
[WhiteClock "0:02:05"]
[BlackClock "0:02:26"]

1. Nc3 {[%clk 0:03:00]}  Nf6 {[%clk 0:02:56]} 2. Nf3 {[%clk 0:02:58]}  g6 {[%clk 0:02:57]} 3. e4 {[%clk 0:02:57]}  d6 {[%clk 0:02:57]} 4. d4 {[%clk 0:02:57]}  Bg7 {[%clk 0:02:57]} 5. Be2 {[%clk 0:02:57]}  c6 {[%clk 0:02:58]} 6. O-O {[%clk 0:02:56]}  O-O {[%clk 0:02:57]} 7. h3 {[%clk 0:02:56]}  Nbd7 {[%clk 0:02:56]} 8. a4 {[%clk 0:02:46]}  e5 {[%clk 0:02:55]} 9. dxe5 {[%clk 0:02:46]}  dxe5 {[%clk 0:02:53]} 10. Bc4 {[%clk 0:02:46]}  Qc7 {[%clk 0:02:51]} 11. Be3 {[%clk 0:02:37]}  b6 {[%clk 0:02:50]} 12. Qd3 {[%clk 0:02:35]}  Rb8 {[%clk 0:02:48]} 13. Rfd1 {[%clk 0:02:35]}  h6 {[%clk 0:02:44]} 14. Qd6 {[%clk 0:02:34]}  Qxd6 {[%clk 0:02:38]} 15. Rxd6 {[%clk 0:02:35]}  Bb7 {[%clk 0:02:38]} 16. Rad1 {[%clk 0:02:33]}  Rfd8 {[%clk 0:02:35]} 17. Nxe5 {[%clk 0:02:28]}  Bf8 {[%clk 0:02:31]} 18. Nxf7 {[%clk 0:02:07]}  Bxd6 {[%clk 0:02:27]} 19. Nxd8+ {[%clk 0:02:07]}  Kg7 {[%clk 0:02:27]} 20. Nxb7 {[%clk 0:02:06]}  Be5 {[%clk 0:02:26]} 21. Nd6 {[%clk 0:02:05]} 1-0

[Event "November 21 Early 2023"]
[Site "https://www.chess.com"]
[Date "2023.11.21"]
[Round "8"]
[White "Spata, German"]
[Black "Orlov, Georgi"]
[Result "1/2-1/2"]
[Board "93"]
[TimeControl "180+1"]
[WhiteFideId "113026"]
[BlackFideId "2011271"]
[WhiteElo "2260"]
[BlackElo "2497"]
[WhiteTeam "ARG"]
[BlackTeam "USA"]
[WhiteClock "0:00:06"]
[BlackClock "0:00:08"]

1. e4 {[%clk 0:02:55]}  c5 {[%clk 0:02:59]} 2. f4 {[%clk 0:02:53]}  d5 {[%clk 0:02:57]} 3. Bb5+ {[%clk 0:02:52]}  Bd7 {[%clk 0:02:54]} 4. Bxd7+ {[%clk 0:02:52]}  Qxd7 {[%clk 0:02:49]} 5. d3 {[%clk 0:02:52]}  dxe4 {[%clk 0:02:47]} 6. dxe4 {[%clk 0:02:52]}  Qxd1+ {[%clk 0:02:47]} 7. Kxd1 {[%clk 0:02:53]}  Nc6 {[%clk 0:02:48]} 8. c3 {[%clk 0:02:48]}  Nf6 {[%clk 0:02:35]} 9. Nd2 {[%clk 0:02:42]}  h5 {[%clk 0:02:18]} 10. Ke2 {[%clk 0:02:39]}  O-O-O {[%clk 0:02:14]} 11. Ngf3 {[%clk 0:02:38]}  e6 {[%clk 0:02:11]} 12. Ng5 {[%clk 0:02:36]}  Rd7 {[%clk 0:02:10]} 13. Rd1 {[%clk 0:02:16]}  Ne8 {[%clk 0:02:02]} 14. Nc4 {[%clk 0:02:09]}  Rxd1 {[%clk 0:01:51]} 15. Kxd1 {[%clk 0:02:08]}  Nd8 {[%clk 0:01:52]} 16. a4 {[%clk 0:02:02]}  f6 {[%clk 0:01:51]} 17. Nf3 {[%clk 0:02:02]}  Nf7 {[%clk 0:01:43]} 18. Ke2 {[%clk 0:02:00]}  Ned6 {[%clk 0:01:42]} 19. Ncd2 {[%clk 0:01:53]}  Be7 {[%clk 0:01:35]} 20. b3 {[%clk 0:01:48]}  g5 {[%clk 0:01:26]} 21. fxg5 {[%clk 0:01:45]}  fxg5 {[%clk 0:01:24]} 22. Ba3 {[%clk 0:01:42]}  g4 {[%clk 0:01:24]} 23. Ne1 {[%clk 0:01:39]}  b6 {[%clk 0:01:22]} 24. Nd3 {[%clk 0:01:38]}  Ng5 {[%clk 0:01:19]} 25. Ke3 {[%clk 0:01:29]}  Bf8 {[%clk 0:01:01]} 26. Nf2 {[%clk 0:00:56]}  Bh6 {[%clk 0:00:59]} 27. Ke2 {[%clk 0:00:57]}  Rd8 {[%clk 0:00:55]} 28. b4 {[%clk 0:00:53]}  Ndf7 {[%clk 0:00:48]} 29. Rd1 {[%clk 0:00:41]}  cxb4 {[%clk 0:00:46]} 30. cxb4 {[%clk 0:00:42]}  Ne5 {[%clk 0:00:45]} 31. b5 {[%clk 0:00:37]}  Ngf7 {[%clk 0:00:38]} 32. Bb2 {[%clk 0:00:31]}  Kb7 {[%clk 0:00:34]} 33. Bc3 {[%clk 0:00:25]}  Rc8 {[%clk 0:00:33]} 34. Rc1 {[%clk 0:00:23]}  Nc4 {[%clk 0:00:31]} 35. Rd1 {[%clk 0:00:12]}  Nfd6 {[%clk 0:00:20]} 36. Nxc4 {[%clk 0:00:12]}  Nxc4 {[%clk 0:00:20]} 37. Rd7+ {[%clk 0:00:12]}  Ka8 {[%clk 0:00:20]} 38. Bf6 {[%clk 0:00:09]}  Nb2 {[%clk 0:00:14]} 39. Bxb2 {[%clk 0:00:09]}  Rc2+ {[%clk 0:00:13]} 40. Kd3 {[%clk 0:00:08]}  Rxb2 {[%clk 0:00:12]} 41. Rf7 {[%clk 0:00:06]}  Ra2 {[%clk 0:00:10]} 42. e5 {[%clk 0:00:06]}  Rxa4 {[%clk 0:00:09]} 43. Ne4 {[%clk 0:00:06]}  Ra3+ {[%clk 0:00:09]} 44. Kc4 {[%clk 0:00:05]}  Re3 {[%clk 0:00:08]} 45. Nd6 {[%clk 0:00:05]}  a5 {[%clk 0:00:08]} 46. Rh7 {[%clk 0:00:04]}  Bf4 {[%clk 0:00:08]} 47. Rh8+ {[%clk 0:00:04]}  Ka7 {[%clk 0:00:08]} 48. Rh7+ {[%clk 0:00:05]}  Ka8 {[%clk 0:00:08]} 49. Rh8+ {[%clk 0:00:05]}  Ka7 {[%clk 0:00:08]} 50. Nc8+ {[%clk 0:00:05]}  Kb7 {[%clk 0:00:08]} 51. Nd6+ {[%clk 0:00:06]}  Ka7 {[%clk 0:00:08]} 1/2-1/2

[Event "November 21 Early 2023"]
[Site "https://www.chess.com"]
[Date "2023.11.21"]
[Round "8"]
[White "Preobrazhenska_D2011"]
[Black "NelsonLinda"]
[Result "0-1"]
[Board "98"]
[TimeControl "180+1"]
[WhiteElo "2462"]
[BlackElo "2562"]
[WhiteClock "0:00:02"]
[BlackClock "0:00:25"]

1. e4 {[%clk 0:02:59]}  c5 {[%clk 0:02:54]} 2. Nf3 {[%clk 0:02:59]}  e6 {[%clk 0:02:54]} 3. d4 {[%clk 0:02:59]}  cxd4 {[%clk 0:02:55]} 4. Nxd4 {[%clk 0:03:00]}  Nf6 {[%clk 0:02:56]} 5. Nc3 {[%clk 0:03:00]}  d6 {[%clk 0:02:56]} 6. Bg5 {[%clk 0:02:31]}  Be7 {[%clk 0:02:51]} 7. f4 {[%clk 0:02:21]}  O-O {[%clk 0:02:47]} 8. Qd2 {[%clk 0:02:13]}  h6 {[%clk 0:02:36]} 9. h4 {[%clk 0:01:55]}  e5 {[%clk 0:02:21]} 10. Nb3 {[%clk 0:01:26]}  hxg5 {[%clk 0:02:14]} 11. hxg5 {[%clk 0:01:27]}  Ng4 {[%clk 0:02:15]} 12. g3 {[%clk 0:01:07]}  g6 {[%clk 0:01:43]} 13. Qg2 {[%clk 0:00:57]}  Kg7 {[%clk 0:01:38]} 14. Nd5 {[%clk 0:00:43]}  Nc6 {[%clk 0:01:27]} 15. O-O-O {[%clk 0:00:29]}  Rh8 {[%clk 0:01:22]} 16. Be2 {[%clk 0:00:23]}  Rxh1 {[%clk 0:00:49]} 17. Rxh1 {[%clk 0:00:24]}  Bxg5 {[%clk 0:00:49]} 18. fxg5 {[%clk 0:00:24]}  Qxg5+ {[%clk 0:00:50]} 19. Kb1 {[%clk 0:00:24]}  Bd7 {[%clk 0:00:42]} 20. c3 {[%clk 0:00:16]}  Rh8 {[%clk 0:00:40]} 21. Rxh8 {[%clk 0:00:14]}  Kxh8 {[%clk 0:00:41]} 22. Bf3 {[%clk 0:00:10]}  Nf6 {[%clk 0:00:35]} 23. Nxf6 {[%clk 0:00:09]}  Qxf6 {[%clk 0:00:36]} 24. Nd2 {[%clk 0:00:08]}  Kg7 {[%clk 0:00:36]} 25. Nc4 {[%clk 0:00:08]}  b5 {[%clk 0:00:36]} 26. Ne3 {[%clk 0:00:08]}  Ne7 {[%clk 0:00:35]} 27. Qe2 {[%clk 0:00:07]}  Qg5 {[%clk 0:00:34]} 28. Nf1 {[%clk 0:00:06]}  Nc8 {[%clk 0:00:29]} 29. Qd3 {[%clk 0:00:05]}  Qf6 {[%clk 0:00:28]} 30. Nd2 {[%clk 0:00:05]}  Nb6 {[%clk 0:00:27]} 31. b3 {[%clk 0:00:04]}  a6 {[%clk 0:00:25]} 32. Nf1 {[%clk 0:00:04]}  Bc6 {[%clk 0:00:23]} 33. Nd2 {[%clk 0:00:03]}  Nd7 {[%clk 0:00:23]} 34. Qe3 {[%clk 0:00:03]}  Nc5 {[%clk 0:00:23]} 35. b4 {[%clk 0:00:04]}  Na4 {[%clk 0:00:23]} 36. Kc2 {[%clk 0:00:03]}  Qe6 {[%clk 0:00:23]} 37. Nb3 {[%clk 0:00:03]}  Qc4 {[%clk 0:00:23]} 38. Be2 {[%clk 0:00:02]}  Qxe4+ {[%clk 0:00:20]} 39. Qxe4 {[%clk 0:00:02]}  Bxe4+ {[%clk 0:00:21]} 40. Kd2 {[%clk 0:00:03]}  Bd5 {[%clk 0:00:21]} 41. Nc1 {[%clk 0:00:02]}  Bc4 {[%clk 0:00:20]} 42. Bxc4 {[%clk 0:00:03]}  bxc4 {[%clk 0:00:21]} 43. Kc2 {[%clk 0:00:03]}  d5 {[%clk 0:00:21]} 44. Ne2 {[%clk 0:00:04]}  f5 {[%clk 0:00:21]} 45. Ng1 {[%clk 0:00:03]}  Kf6 {[%clk 0:00:20]} 46. Nf3 {[%clk 0:00:03]}  g5 {[%clk 0:00:21]} 47. Nd2 {[%clk 0:00:03]}  g4 {[%clk 0:00:21]} 48. Nf1 {[%clk 0:00:03]}  f4 {[%clk 0:00:21]} 49. gxf4 {[%clk 0:00:04]}  exf4 {[%clk 0:00:22]} 50. Kd2 {[%clk 0:00:04]}  Ke5 {[%clk 0:00:23]} 51. Ke2 {[%clk 0:00:03]}  Nxc3+ {[%clk 0:00:23]} 52. Kd2 {[%clk 0:00:03]}  Nxa2 {[%clk 0:00:24]} 53. Nh2 {[%clk 0:00:04]}  Kf5 {[%clk 0:00:23]} 54. Ke2 {[%clk 0:00:03]}  Nxb4 {[%clk 0:00:23]} 55. Nf1 {[%clk 0:00:03]}  c3 {[%clk 0:00:23]} 56. Kf2 {[%clk 0:00:03]}  d4 {[%clk 0:00:24]} 57. Ke2 {[%clk 0:00:03]}  g3 {[%clk 0:00:23]} 58. Kd1 {[%clk 0:00:02]}  Ke4 {[%clk 0:00:24]} 59. Ke2 {[%clk 0:00:02]}  a5 {[%clk 0:00:23]} 60. Kd1 {[%clk 0:00:02]}  a4 {[%clk 0:00:24]} 61. Ke2 {[%clk 0:00:03]}  a3 {[%clk 0:00:24]} 62. Kd1 {[%clk 0:00:03]}  a2 {[%clk 0:00:25]} 63. Ke2 {[%clk 0:00:04]}  d3+ {[%clk 0:00:24]} 64. Ke1 {[%clk 0:00:02]}  a1=Q# {[%clk 0:00:25]} 0-1

[Event "November 21 Early 2023"]
[Site "https://www.chess.com"]
[Date "2023.11.21"]
[Round "8"]
[White "FREDERICKtheMATE"]
[Black "Khromkin, Andrey"]
[Result "1-0"]
[Board "99"]
[TimeControl "180+1"]
[BlackFideId "4154126"]
[WhiteElo "2556"]
[BlackElo "2457"]
[BlackTeam "RUS"]
[WhiteClock "0:00:53"]
[BlackClock "0:00:00"]

1. Nf3 {[%clk 0:03:00]}  c5 {[%clk 0:02:59]} 2. d4 {[%clk 0:03:01]}  cxd4 {[%clk 0:02:58]} 3. Nxd4 {[%clk 0:03:02]}  Nc6 {[%clk 0:02:58]} 4. g3 {[%clk 0:03:02]}  g6 {[%clk 0:02:59]} 5. Bg2 {[%clk 0:03:02]}  Bg7 {[%clk 0:03:00]} 6. c3 {[%clk 0:02:58]}  h5 {[%clk 0:02:59]} 7. h4 {[%clk 0:02:56]}  Nh6 {[%clk 0:02:58]} 8. O-O {[%clk 0:02:56]}  O-O {[%clk 0:02:54]} 9. Bxh6 {[%clk 0:02:55]}  Bxh6 {[%clk 0:02:54]} 10. Nd2 {[%clk 0:02:55]}  d5 {[%clk 0:02:44]} 11. N2f3 {[%clk 0:02:55]}  Bg7 {[%clk 0:02:40]} 12. Rc1 {[%clk 0:02:52]}  e5 {[%clk 0:02:40]} 13. Nb3 {[%clk 0:02:47]}  Bg4 {[%clk 0:02:28]} 14. Ng5 {[%clk 0:02:41]}  e4 {[%clk 0:02:21]} 15. f3 {[%clk 0:02:37]}  exf3 {[%clk 0:02:14]} 16. exf3 {[%clk 0:02:37]}  Bf5 {[%clk 0:02:11]} 17. g4 {[%clk 0:02:29]}  hxg4 {[%clk 0:02:03]} 18. fxg4 {[%clk 0:02:30]}  Be4 {[%clk 0:01:47]} 19. Nxe4 {[%clk 0:02:23]}  dxe4 {[%clk 0:01:47]} 20. Qxd8 {[%clk 0:02:23]}  Raxd8 {[%clk 0:01:45]} 21. Bxe4 {[%clk 0:02:23]}  Ne5 {[%clk 0:01:46]} 22. Bxb7 {[%clk 0:02:18]}  Nxg4 {[%clk 0:01:40]} 23. Rce1 {[%clk 0:02:10]}  Rd3 {[%clk 0:01:23]} 24. Rf3 {[%clk 0:02:07]}  Rfd8 {[%clk 0:01:22]} 25. Nc5 {[%clk 0:01:57]}  Rd2 {[%clk 0:01:20]} 26. Ba6 {[%clk 0:01:25]}  Rxb2 {[%clk 0:01:14]} 27. Nd3 {[%clk 0:01:25]}  Bxc3 {[%clk 0:00:56]} 28. Re4 {[%clk 0:01:18]}  Rb1+ {[%clk 0:00:42]} 29. Kg2 {[%clk 0:01:17]}  Nf6 {[%clk 0:00:42]} 30. Rc4 {[%clk 0:01:11]}  Ba1 {[%clk 0:00:40]} 31. Rc7 {[%clk 0:01:09]}  Rf8 {[%clk 0:00:21]} 32. Rxa7 {[%clk 0:01:04]}  Rd1 {[%clk 0:00:11]} 33. Bc4 {[%clk 0:01:00]}  Rd2+ {[%clk 0:00:11]} 34. Kh3 {[%clk 0:01:00]}  Bd4 {[%clk 0:00:07]} 35. Rb7 {[%clk 0:00:58]}  Bg1 {[%clk 0:00:06]} 36. Rxf6 {[%clk 0:00:55]}  Rh2+ {[%clk 0:00:04]} 37. Kg3 {[%clk 0:00:55]}  Re2 {[%clk 0:00:00]} 38. Rfxf7 {[%clk 0:00:53]} 1-0